fUST/lending_fUST_20240820
["ID","MTS","AMOUNT","RATE_DAILY","PERIOD"]
[335301335,1724088657504,-500.0,0.00017534,2]
[335301336,1724088657513,-500.0,0.00017534,2]
[335301337,1724088657523,-500.0,0.00017534,2]
[335301338,1724088657532,-500.0,0.00017534,2]
[335301339,1724088657542,-500.0,0.00017534,2]
[335301340,1724088657551,-500.0,0.00017534,2]
[335301341,1724088657560,-1300.46,0.00017534,2]
[335301342,1724088657570,-500.0,0.00017534,2]
[335301343,1724088657579,-500.0,0.00017534,2]
[335301344,1724088657589,-500.0,0.00017534,2]
[335301345,1724088657598,-270.30550964,0.00017534,2]
[335301346,1724088657609,-500.0,0.00017534,2]
[335301347,1724088657620,-500.0,0.00017534,2]
[335301348,1724088657632,-500.0,0.00017534,2]
[335301349,1724088657642,-527.5165738,0.00017534,2]
[335301350,1724088657654,-253.78065924,0.00017534,2]
[335301351,1724088657665,-500.0,0.00017534,2]
[335301352,1724088657674,-500.0,0.00017534,2]
[335301353,1724088657684,-500.0,0.00017534,2]
[335301354,1724088657699,-500.0,0.00017534,2]
[335301355,1724088657710,-500.0,0.00017534,2]
[335301356,1724088657721,-500.0,0.00017534,2]
[335301357,1724088657731,-500.0,0.00017534,2]
[335301358,1724088657743,-500.0,0.00017534,2]
[335301359,1724088657753,-500.0,0.00017534,2]
[335301360,1724088657763,-500.0,0.00017534,2]
[335301361,1724088657773,-500.0,0.00017534,2]
[335301362,1724088657784,-500.0,0.00017534,2]
[335301363,1724088657795,-247.62410314,0.00017534,2]
[335301364,1724088657806,-500.0,0.00017534,2]
[335301365,1724088657815,-500.0,0.00017534,2]
[335301366,1724088657826,-1706.76,0.00017534,2]
[335301367,1724088657837,-500.0,0.00017534,2]
[335301368,1724088657846,-552.8988441,0.00017534,2]
[335301369,1724088657855,-739.09,0.00017534,2]
[335301370,1724088657865,-3572.91,0.00017534,2]
[335301371,1724088657874,-500.0,0.00017534,2]
[335301372,1724088657884,-500.0,0.00017534,2]
[335301373,1724088657893,-500.0,0.00017534,2]
[335301374,1724088657902,-500.0,0.00017534,2]
[335301375,1724088657912,-500.0,0.00017534,2]
[335301376,1724088657921,-500.0,0.00017534,2]
[335301377,1724088657930,-500.0,0.00017534,2]
[335301378,1724088657939,-500.0,0.00017534,2]
[335301379,1724088657948,-500.0,0.00017534,2]
[335301380,1724088657958,-500.0,0.00017534,2]
[335301381,1724088657968,-500.0,0.00017534,2]
[335301382,1724088657977,-500.0,0.00017534,2]
[335301383,1724088657986,-500.0,0.00017534,2]
[335301384,1724088657996,-500.0,0.00017534,2]
[335301385,1724088658007,-500.0,0.00017534,2]
[335301386,1724088658019,-500.0,0.00017534,2]
[335301387,1724088658029,-500.0,0.00017534,2]
[335301388,1724088658039,-500.0,0.00017534,2]
[335301389,1724088658049,-500.0,0.00017534,2]
[335301390,1724088658060,-607.97441048,0.00017534,2]
[335301391,1724088658069,-500.0,0.00017534,2]
[335301392,1724088658078,-500.0,0.00017534,2]
[335301393,1724088658089,-364.79042512,0.00017534,2]
[335301394,1724088658100,-551.82476715,0.00017534,2]
[335301395,1724088658111,-500.0,0.00017534,2]
[335301396,1724088658122,-500.0,0.00017534,2]
[335301397,1724088658132,-500.0,0.00017534,2]
[335301398,1724088658144,-500.0,0.00017534,2]
[335301399,1724088658156,-500.0,0.00017534,2]
[335301400,1724088658168,-500.0,0.00017534,2]
[335301401,1724088658178,-500.0,0.00017534,2]
[335301402,1724088658188,-500.0,0.00017534,2]
[335301403,1724088658198,-500.0,0.00017534,2]
[335301404,1724088658208,-500.0,0.00017534,2]
[335301405,1724088658219,-500.0,0.00017534,2]
[335301406,1724088658229,-500.0,0.00017534,2]
[335301407,1724088658238,-500.0,0.00017534,2]
[335301408,1724088658249,-596.8406338,0.00017534,2]
[335301409,1724088658260,-500.0,0.00017534,2]
[335301410,1724088658270,-500.0,0.00017534,2]
[335301411,1724088658280,-701.89,0.00017534,2]
[335301412,1724088658289,-500.0,0.00017534,2]
[335301413,1724088658298,-500.0,0.00017534,2]
[335301414,1724088658308,-771.27,0.00017534,2]
[335301415,1724088658318,-500.0,0.00017534,2]
[335301416,1724088658328,-500.0,0.00017534,2]
[335301417,1724088658338,-523.5,0.00017534,2]
[335301418,1724088658348,-500.0,0.00017534,2]
[335301419,1724088658357,-500.0,0.00017534,2]
[335301420,1724088658367,-500.0,0.00017534,2]
[335301421,1724088658377,-377.74839251,0.00017534,2]
[335301422,1724088658388,-500.0,0.00017534,2]
[335301423,1724088658397,-500.0,0.00017534,2]
[335301424,1724088658407,-500.0,0.00017534,2]
[335301425,1724088658420,-500.0,0.00017534,2]
[335301426,1724088658430,-553.15,0.00017534,2]
[335301427,1724088658439,-678.27,0.00017534,2]
[335301428,1724088658449,-339.64469044,0.00017534,2]
[335301429,1724088658866,-190.07446844,0.00011842,2]
[335301430,1724088658877,-600.88577429,0.00012782,2]
[335301431,1724088658887,-520.61647298,0.00012934,2]
[335301432,1724088658897,-269.93873618,0.00012991,7]
[335301433,1724088658908,-193.478014,0.00016438,2]
[335301434,1724088658919,-500.0,0.00016438,2]
[335301435,1724088658929,-193.478014,0.00016712,2]
[335301436,1724088658939,-193.478014,0.00016712,2]
[335301437,1724088658951,-193.478014,0.000168,2]
[335301438,1724088658962,-193.478014,0.00016986,2]
[335301439,1724088658971,-160.35530956,0.00017534,2]
[335301440,1724088658981,-500.0,0.00017534,2]
[335301441,1724088658993,-500.0,0.00017534,2]
[335301442,1724088659004,-500.0,0.00017534,2]
[335301443,1724088659014,-631.5828755,0.00017534,2]
[335301444,1724088659024,-554.12,0.00017534,2]
[335301445,1724088659036,-500.0,0.00017534,2]
[335301446,1724088659046,-500.0,0.00017534,2]
[335301447,1724088659055,-500.0,0.00017534,2]
[335301448,1724088659064,-500.0,0.00017534,2]
[335301449,1724088659073,-500.0,0.00017534,2]
[335301450,1724088659084,-1175.83,0.00017534,2]
[335301451,1724088659094,-592.01,0.00017534,2]
[335301452,1724088659103,-500.0,0.00017534,2]
[335301453,1724088659114,-500.0,0.00017534,2]
[335301454,1724088659125,-837.73,0.00017534,2]
[335301455,1724088659135,-500.0,0.00017534,2]
[335301456,1724088659146,-540.99,0.00017534,2]
[335301457,1724088659156,-500.0,0.00017534,2]
[335301458,1724088659168,-500.0,0.00017534,2]
[335301459,1724088659178,-500.0,0.00017534,2]
[335301460,1724088659188,-500.0,0.00017534,2]
[335301461,1724088659197,-500.0,0.00017534,2]
[335301462,1724088659207,-500.0,0.00017534,2]
[335301463,1724088659216,-1226.62,0.00017534,2]
[335301464,1724088659226,-500.0,0.00017534,2]
[335301465,1724088659235,-500.0,0.00017534,2]
[335301466,1724088659244,-500.0,0.00017534,2]
[335301467,1724088659253,-599.63,0.00017534,2]
[335301468,1724088659263,-500.0,0.00017534,2]
[335301469,1724088659272,-364.07028909,0.00017534,2]
[335301470,1724088659281,-500.0,0.00017534,2]
[335301471,1724088659291,-500.0,0.00017534,2]
[335301472,1724088659300,-500.0,0.00017534,2]
[335301473,1724088659310,-2431.57,0.00017534,2]
[335301474,1724088659320,-500.0,0.00017534,2]
[335301475,1724088659329,-500.0,0.00017534,2]
[335301476,1724088659339,-500.0,0.00017534,2]
[335301477,1724088659349,-500.0,0.00017534,2]
[335301478,1724088659358,-1915.12,0.00017534,2]
[335301479,1724088659368,-500.0,0.00017534,2]
[335301480,1724088659380,-995.83,0.00017534,2]
[335301481,1724088659391,-500.0,0.00017534,2]
[335301482,1724088659401,-500.0,0.00017534,2]
[335301483,1724088659410,-183.547366,0.00017534,2]
[335301484,1724088659419,-500.0,0.00017534,2]
[335301485,1724088659429,-183.547366,0.00017534,2]
[335301486,1724088659439,-719.9,0.00017534,2]
[335301487,1724088659448,-411.03371134,0.00017534,2]
[335301488,1724088659457,-500.0,0.00017534,2]
[335301489,1724088659466,-779.2,0.00017534,2]
[335301490,1724088659476,-500.0,0.00017534,2]
[335301491,1724088659486,-2235.64,0.00017534,2]
[335301492,1724088659495,-230.521674,0.00017534,2]
[335301493,1724088659505,-500.0,0.00017534,2]
[335301494,1724088659514,-500.0,0.00017534,2]
[335301495,1724088659524,-663.13,0.00017534,2]
[335301496,1724088659533,-230.521674,0.00017534,2]
[335301497,1724088659542,-500.0,0.00017534,2]
[335301498,1724088659552,-500.0,0.00017534,2]
[335301499,1724088659562,-353.251582,0.00017534,2]
[335301500,1724088659572,-500.0,0.00017534,2]
[335301501,1724088659581,-353.251582,0.00017534,2]
[335301502,1724088659592,-592.25,0.00017534,2]
[335301503,1724088659602,-500.0,0.00017534,2]
[335301504,1724088659612,-369.84518074,0.00017534,2]
[335301505,1724088659623,-348.50737,0.00017534,2]
[335301506,1724088659633,-500.0,0.00017534,2]
[335301507,1724088659642,-348.50737,0.00017534,2]
[335301508,1724088659652,-500.0,0.00017534,2]
[335301509,1724088659661,-404.84800211,0.00017534,2]
[335301510,1724088659678,-500.0,0.00017534,2]
[335301511,1724088659688,-553.49,0.00017534,2]
[335301512,1724088659701,-500.0,0.00017534,2]
[335301513,1724088659710,-6158.12,0.00017534,2]
[335301514,1724088659720,-538.13551051,0.00017534,2]
[335301515,1724088659729,-500.0,0.00017534,2]
[335301516,1724088659740,-649.66,0.00017534,2]
[335301517,1724088659751,-500.0,0.00017534,2]
[335301518,1724088659760,-500.0,0.00017534,2]
[335301519,1724088659769,-500.0,0.00017534,2]
[335301520,1724088659780,-500.0,0.00017534,2]
[335301521,1724088659790,-500.0,0.00017534,2]
[335301522,1724088659800,-500.0,0.00017534,2]
[335301523,1724088659809,-500.0,0.00017534,2]
[335301524,1724088659819,-1101.19,0.00017534,2]
[335301525,1724088659828,-500.0,0.00017534,2]
[335301526,1724088659838,-21.22490684,0.00017534,2]
[335301527,1724088659975,273.37336231,9.9e-05,2]
[335301533,1724088676822,273.37336231,9.9e-05,2]
[335301535,1724088692647,273.37336231,9.9e-05,2]
[335301537,1724088707894,273.37336231,9.9e-05,2]
[335301538,1724088723761,273.37336231,9.9e-05,2]
[335301539,1724088739605,273.37336231,9.9e-05,2]
[335301540,1724088755308,273.37336231,9.9e-05,2]
[335301541,1724088771112,273.37336231,9.9e-05,2]
[335301542,1724088786383,273.37336231,9.9e-05,2]
[335301543,1724088802194,273.37336231,9.9e-05,2]
[335301544,1724088817510,273.37336231,9.9e-05,2]
[335301545,1724088833301,273.37336231,9.9e-05,2]
[335301546,1724088849167,273.37336231,9.9e-05,2]
[335301547,1724088864350,273.37336231,9.9e-05,2]
[335301548,1724088881097,273.37336231,9.9e-05,2]
[335301549,1724088896273,273.37336231,9.9e-05,2]
[335301550,1724088911494,273.37336231,9.9e-05,2]
[335301551,1724088927238,273.37336231,9.9e-05,2]
[335301552,1724088943641,273.37336231,9.9e-05,2]
[335301553,1724088960039,273.37336231,9.9e-05,2]
[335301554,1724088975191,273.37336231,9.9e-05,2]
[335301584,1724088990551,273.37336231,9.9e-05,2]
[335301585,1724089005846,273.37336231,9.9e-05,2]
[335301586,1724089021119,273.37336231,9.9e-05,2]
[335301587,1724089026041,2712.58332809,9.999e-05,2]
[335301588,1724089036628,273.37336231,9.9e-05,2]
[335301590,1724089052900,273.37336231,9.9e-05,2]
[335301591,1724089068910,273.37336231,9.9e-05,2]
[335301592,1724089085670,273.37336231,9.9e-05,2]
[335301593,1724089101387,273.37336231,9.9e-05,2]
[335301594,1724089116606,273.37336231,9.9e-05,2]
[335301595,1724089131825,273.37336231,9.9e-05,2]
[335301596,1724089147345,273.37336231,9.9e-05,2]
[335301598,1724089162734,273.37336231,9.9e-05,2]
[335301599,1724089178591,273.37336231,9.9e-05,2]
[335301600,1724089194935,273.37336231,9.9e-05,2]
[335301601,1724089210427,273.37336231,9.9e-05,2]
[335301602,1724089225819,273.37336231,9.9e-05,2]
[335301603,1724089228789,2166.25640825,9.999e-05,2]
[335301604,1724089241051,273.37336231,9.9e-05,2]
[335301605,1724089244857,1500.0,9.999e-05,2]
[335301606,1724089250566,850.86713135,9.999e-05,2]
[335301607,1724089253890,1577.45735415,9.939e-05,2]
[335301608,1724089309104,-1871.10214749,9.899e-05,2]
[335301609,1724089309137,-273.37336231,9.9e-05,2]
[335301610,1724089309165,-45309.40516429,9.939e-05,2]
[335301611,1724089309193,-600.88577429,9.999e-05,2]
[335301612,1724089309221,-421.51336898,9.999e-05,2]
[335301613,1724089309249,-2141.72832415,9.999e-05,2]
[335301614,1724089309275,-1613.45959463,9.999e-05,2]
[335301615,1724089309301,-780.53127294,9.999e-05,2]
[335301616,1724089309327,-300.0,0.0001008,2]
[335301617,1724089309351,-300.0,0.0001008,2]
[335301618,1724089309374,-160.44466579,0.00010081,2]
[335301619,1724089309397,-2128.04084944,0.00010081,2]
[335301620,1724089309420,-210.23989812,0.00010081,2]
[335301621,1724089309444,-154.69833824,0.00010081,2]
[335301622,1724089309467,-252.34121387,0.00010081,2]
[335301623,1724089309492,-290.65712697,0.00010081,2]
[335301624,1724089309516,-728.79489661,0.00010081,2]
[335301625,1724089309540,-315.28171377,0.00010081,2]
[335301626,1724089309575,-544.00882293,0.0001026,2]
[335301627,1724089309598,-196.81150092,0.0001026,2]
[335301628,1724089309622,-174.83511409,0.0001026,2]
[335301629,1724089309646,-269.93873618,0.0001026,7]
[335301630,1724089309672,-24900.0,0.0001026,2]
[335301631,1724089309695,-516.86288598,0.00010544,2]
[335301632,1724089309719,-320.27103328,0.00010544,2]
[335301633,1724089309744,-688.676981,0.00010544,2]
[335301634,1724089309770,-190.07446844,0.00010544,2]
[335301635,1724089309794,-404.43330921,0.00010739,2]
[335301636,1724089309820,-3092.64278727,0.00010739,2]
[335301637,1724089309847,-188.56371582,0.00010739,2]
[335301638,1724089309874,-368.83399123,0.00010739,2]
[335301639,1724089309898,-190.016549,0.00010761,2]
[335301640,1724089309928,-190.016549,0.00010791,2]
[335301641,1724089309954,-190.016549,0.0001082,2]
[335301642,1724089309980,-190.016549,0.0001085,2]
[335301643,1724089310007,-192.0011942,0.00010859,2]
[335301644,1724089310033,-190.016549,0.00010879,2]
[335301645,1724089310059,-190.016549,0.00010909,2]
[335301646,1724089310083,-190.016549,0.00010938,2]
[335301647,1724089310107,-295.49163133,0.00010958,2]
[335301648,1724089310132,-190.016549,0.00010968,2]
[335301649,1724089310156,-190.016549,0.00010997,2]
[335301650,1724089310179,-190.016549,0.00011027,2]
[335301651,1724089310203,-190.016549,0.00011056,2]
[335301652,1724089310227,-190.016549,0.00011086,2]
[335301653,1724089310251,-420.0,0.00011089,2]
[335301654,1724089310275,-190.016549,0.00011115,2]
[335301655,1724089310301,-190.016549,0.00011145,2]
[335301656,1724089310325,-190.016549,0.00011174,2]
[335301657,1724089310349,-190.016549,0.00011204,2]
[335301658,1724089310374,-190.016549,0.00011233,2]
[335301659,1724089310398,-190.016549,0.00011263,2]
[335301660,1724089310421,-190.016549,0.00011292,2]
[335301661,1724089310446,-190.016549,0.00011322,2]
[335301662,1724089310470,-154.69833824,0.00011409,2]
[335301663,1724089310495,-2712.58332809,0.00011712,2]
[335301664,1724089310518,-569.55611374,0.00011894,2]
[335301665,1724089310543,-2146.88735616,0.0001212,3]
[335301675,1724089753167,-875.03409483,8.532e-05,2]
[335301676,1724089753190,-875.03409483,8.673e-05,2]
[335301677,1724089753212,-157.09608348,8.769e-05,2]
[335301678,1724089753234,-544.00882293,8.793e-05,2]
[335301679,1724089753255,-154.69833824,8.793e-05,2]
[335301680,1724089753276,-2186.76010859,8.861e-05,2]
[335301681,1724089754140,-810.27576987,8.861e-05,2]
[335301717,1724089832404,-272.65251085,8.705e-05,2]
[335301718,1724089832415,-3092.64278727,8.761e-05,2]
[335301719,1724089832426,-1087.61726092,8.861e-05,2]
[335301720,1724089832438,-74.54249908,8.861e-05,2]
[335301721,1724089832448,-1911.32470924,9.999e-05,2]
[335301722,1724089832457,-850.86713135,0.0001026,2]
[335301723,1724089832467,-300.0,0.00010543,2]
[335301724,1724089832477,-2082.78551357,0.00010544,2]
[335301764,1724089839035,-850.86713135,0.00010081,2]
[335301765,1724089839044,-694.99682036,0.00010544,2]
[335301766,1724089839053,-404.43330921,0.00010739,2]
[335301767,1724089839062,-703.9240343,0.00010739,2]
[335301768,1724089839072,-190.07446844,0.00010739,2]
[335301769,1724089839082,-210.19324866,0.00010958,2]
[335301770,1724089839091,-160.1567621,0.000112,2]
[335301771,1724089839101,-24900.0,0.00011273,2]
[335301772,1724089839115,-174.83511409,0.00011409,2]
[335301773,1724089839124,-196.81150092,0.00011409,2]
[335301774,1724089839134,-384.23980794,0.00011409,2]
[335301775,1724089839143,-154.69833824,0.00011409,2]
[335301776,1724089839154,-420.0,0.00011597,2]
[335301777,1724089839163,-421.92268101,0.00012163,2]
[335301778,1724089839172,-587.0,0.00012757,2]
[335301779,1724089839182,-4719.63210399,0.000129,2]
[335301780,1724089839192,-493.30764145,0.0001295,2]
[335301781,1724089839203,-862.44048895,0.00013,2]
[335301782,1724089839212,-205.04397659,0.00013596,2]
[335301783,1724089839221,-600.88577429,0.00013596,2]
[335301784,1724089839231,-1618.59802424,0.00013597,2]
[335301785,1724089839240,-188.56371582,0.00013597,2]
[335301786,1724089839249,-223.52112672,0.00013597,2]
[335301787,1724089839258,-500.34461698,0.00013599,2]
[335301788,1724089839268,-269.93873618,0.00013599,7]
[335301789,1724089839279,-320.27103328,0.00013599,2]
[335301790,1724089839288,-154.69833824,0.00013599,2]
[335301791,1724089839297,-500.0,0.00013698,2]
[335301792,1724089839306,-500.0,0.00013698,2]
[335301793,1724089839315,-500.0,0.00013698,2]
[335301794,1724089839325,-500.0,0.00013698,2]
[335301795,1724089839334,-500.0,0.00013698,2]
[335301796,1724089839344,-389.39131105,0.00013698,2]
[335301797,1724089839356,-500.0,0.00013698,2]
[335301798,1724089839365,-500.0,0.00013698,2]
[335301799,1724089839374,-300.0,0.00013698,2]
[335301800,1724089839384,-500.0,0.00013698,2]
[335301801,1724089839393,-500.0,0.00013698,2]
[335301802,1724089839403,-500.0,0.00013698,2]
[335301803,1724089839412,-500.0,0.00013698,2]
[335301804,1724089839421,-211.37104301,0.00013698,2]
[335301805,1724089839430,-500.0,0.00013698,2]
[335301806,1724089839440,-205.99620412,0.00013698,2]
[335301807,1724089839449,-500.0,0.00013698,2]
[335301808,1724089839458,-500.0,0.00013698,2]
[335301809,1724089839468,-500.0,0.00013698,2]
[335301810,1724089839477,-371.75106598,0.00013698,2]
[335301811,1724089839495,-500.0,0.00013698,2]
[335301812,1724089839514,-500.0,0.00013698,2]
[335301813,1724089839523,-500.0,0.00013698,2]
[335301814,1724089839532,-495.22543901,0.00013698,2]
[335301815,1724089839541,-500.0,0.00013698,2]
[335301816,1724089839551,-500.0,0.00013698,2]
[335301817,1724089839560,-500.0,0.00013698,2]
[335301818,1724089839569,-3000.0,0.00013699,2]
[335301819,1724089839578,-700.934561,0.00013699,2]
[335301820,1724089839587,-194.82337617,0.00013699,2]
[335301821,1724089839596,-582.09432069,0.00013968,2]
[335301822,1724089839605,-500.0,0.00013968,2]
[335301823,1724089839615,-500.0,0.00013968,2]
[335301824,1724089839625,-500.0,0.00013968,2]
[335301825,1724089839634,-500.0,0.00013968,2]
[335301826,1724089839643,-390.66149991,0.00013968,2]
[335301827,1724089839652,-500.0,0.00013968,2]
[335301828,1724089839662,-500.0,0.00013968,2]
[335301829,1724089839672,-500.0,0.00013968,2]
[335301830,1724089839681,-500.0,0.00013968,2]
[335301831,1724089839691,-234.68130177,0.00014,2]
[335301832,1724089839700,-823.0,0.00014032,2]
[335301833,1724089839710,-591.91062758,0.00014245,2]
[335301834,1724089839719,-490.306209,0.00014247,2]
[335301835,1724089839728,-4719.63210399,0.00014679,2]
[335301836,1724089839738,-155.91864042,0.00014691,2]
[335301837,1724089839748,-157.07380443,0.00014691,2]
[335301838,1724089839757,-574.18002641,0.00015,2]
[335301839,1724089839768,-1110.9613583,0.00015,2]
[335301840,1724089839778,-1090.0,0.00015436,2]
[335301841,1724089839787,-355.964233,0.0001589,2]
[335301842,1724089839797,-153.0,0.00015943,2]
[335301843,1724089839807,-153.0,0.00015943,2]
[335301844,1724089839816,-153.0,0.00015943,2]
[335301845,1724089839826,-153.0,0.00015943,2]
[335301846,1724089839835,-153.0,0.00015943,2]
[335301847,1724089839845,-153.0,0.00015943,2]
[335301848,1724089839854,-153.0,0.00015947,2]
[335301849,1724089839864,-2000.0,0.000162,2]
[335301850,1724089839873,-29860.49250893,0.0001629,2]
[335301851,1724089839889,-12499.60305852,0.0001629,2]
[335301889,1724089840710,-174.83511409,0.00010958,2]
[335301891,1724089840720,-269.93873618,0.00013597,7]
[335301893,1724089840730,-1079.01600674,0.0001629,2]
[335301903,1724089840828,-1837.972026,0.0001629,2]
[335301906,1724089840840,-533.111,0.0001629,2]
[335302008,1724089843579,-567.03850807,0.0001629,2]
[335302009,1724089843591,-946.03172301,0.0001629,2]
[335302042,1724089846566,-320.27103328,0.00013597,2]
[335302043,1724089846576,-2000.0,0.000162,2]
[335302044,1724089846586,-11690.22024543,0.0001629,2]
[335302045,1724089846596,-40331.35387367,0.000163,2]
[335302046,1724089846605,-1992.93031044,0.00016338,2]
[335302047,1724089846614,-105461.96198247,0.00016428,2]
[335302048,1724089846626,-56710.38832508,0.00016428,2]
[335302052,1724090327740,1482.25327348,0.000175,20]
[335302053,1724090491326,-273.37336231,9.321e-05,2]
[335302054,1724090491352,-273.37336231,9.415e-05,2]
[335302055,1724090500259,273.37336231,9.9e-05,2]
[335302057,1724090508217,273.37336231,9.9e-05,2]
[335302058,1724090522878,230.69175979,9.415e-05,2]
[335302059,1724090523636,273.37336231,9.9e-05,2]
[335302060,1724090539046,273.37336231,9.9e-05,2]
[335302084,1724090760169,850.86713135,9.999e-05,2]
[335302102,1724090893542,600.88577429,9.999e-05,2]
[335302103,1724090900845,273.37336231,9.9e-05,2]
[335302143,1724090938916,155.28999605,9.999e-05,2]
[335302147,1724090952565,196.81150092,9.999e-05,2]
[335302152,1724090982902,320.27103328,9.999e-05,2]
[335302188,1724091032614,-209.850895,0.00010011,2]
[335302189,1724091032625,-300.0,0.0001008,2]
[335302190,1724091032637,-3092.64278727,0.00010081,2]
[335302191,1724091032647,-3092.64278727,0.00010081,2]
[335302192,1724091032659,-742.89275731,0.00010081,2]
[335302193,1724091032670,-188.56371582,0.00010081,2]
[335302194,1724091032682,-263.05328288,0.0001026,7]
[335302195,1724091032694,-189.71256774,0.0001026,2]
[335302196,1724091032706,-174.83511409,0.0001026,2]
[335302197,1724091032717,-209.850895,0.00010533,2]
[335302198,1724091032727,-24900.0,0.0001132,2]
[335302199,1724091032738,-850.86713135,0.00011731,2]
[335302200,1724091032750,-600.87674953,0.00011999,2]
[335302201,1724091032760,-196.74990594,0.00012,2]
[335302202,1724091032770,-165.15843647,0.00012,2]
[335302203,1724091032780,-196.72510748,0.0001268,2]
[335302204,1724091032790,-201.57395078,0.0001278,2]
[335302205,1724091032800,-201.57395078,0.0001278,2]
[335302206,1724091032809,-3539.72407801,0.000129,2]
[335302207,1724091032820,-933.80144992,0.00012934,2]
[335302208,1724091032829,-493.30764145,0.0001295,2]
[335302209,1724091032839,-421.97678856,0.00012985,2]
[335302210,1724091032851,-38.4751511,0.00012985,2]
[335302211,1724091032861,-834.43880844,0.00012985,2]
[335302212,1724091032871,-168.51084159,0.00012989,2]
[335302213,1724091032882,-119.76540339,0.00012989,2]
[335302214,1724091032892,-703.23459661,0.00013,2]
[335302215,1724091032906,-159.20589234,0.00013,2]
[335302216,1724091032915,-204.38896084,0.00013051,2]
[335302230,1724091038608,-456.4360471,0.0001212,2]
[335302231,1724091038619,-19.13216588,0.00013051,2]
[335302232,1724091038629,-158.06603325,0.00013688,2]
[335302233,1724091038640,-200.0,0.00013698,2]
[335302234,1724091038650,-356.22180046,0.00013698,2]
[335302235,1724091038663,-350.46728,0.00013699,2]
[335302236,1724091038673,-3000.0,0.00013699,2]
[335302237,1724091038683,-194.82337617,0.00013699,2]
[335302238,1724091038692,-500.0,0.00013699,2]
[335302239,1724091038703,-500.0,0.00013699,2]
[335302240,1724091038716,-500.0,0.00013699,2]
[335302241,1724091038726,-500.0,0.00013699,2]
[335302242,1724091038735,-500.0,0.00013699,2]
[335302243,1724091038746,-500.0,0.00013699,2]
[335302244,1724091038756,-500.0,0.00013699,2]
[335302245,1724091038765,-500.0,0.00013699,2]
[335302246,1724091038776,-500.0,0.00013699,2]
[335302247,1724091038786,-327.43818044,0.00013699,2]
[335302248,1724091038796,-500.0,0.00013699,2]
[335302249,1724091038806,-524.041852,0.00014247,2]
[335302250,1724091038816,-199.823194,0.00014247,2]
[335302251,1724091038825,-3539.72407799,0.00014725,2]
[335302252,1724091038835,-1110.9613583,0.00015,2]
[335302253,1724091038845,-574.18002641,0.00015,2]
[335302254,1724091038855,-153.0,0.00015801,2]
[335302255,1724091038865,-153.0,0.00015801,2]
[335302256,1724091038875,-153.0,0.00015801,2]
[335302257,1724091038885,-153.0,0.00015801,2]
[335302258,1724091038895,-153.0,0.00015801,2]
[335302259,1724091038904,-153.0,0.00015805,2]
[335302260,1724091038918,-153.0,0.00015805,2]
[335302261,1724091038927,-153.0,0.00015805,2]
[335302262,1724091038937,-338.166021,0.0001589,2]
[335302263,1724091038948,-5328.69624806,0.00015896,2]
[335302264,1724091038958,-150.0,0.00016003,2]
[335302265,1724091038967,-500.0,0.00016021,2]
[335302266,1724091038977,-407.46602448,0.00016021,2]
[335302267,1724091038987,-500.0,0.00016021,2]
[335302268,1724091038996,-500.0,0.00016021,2]
[335302269,1724091039006,-573.46304994,0.00016021,2]
[335302270,1724091039015,-500.0,0.00016021,2]
[335302271,1724091039025,-500.0,0.00016021,2]
[335302272,1724091039034,-521.0,0.00016024,2]
[335302273,1724091039044,-1414.0,0.00016034,2]
[335302274,1724091039054,-4166.0,0.00016034,2]
[335302275,1724091039064,-336.82525701,0.00016095,2]
[335302276,1724091039074,-153603.952362,0.00016418,2]